[Event "Romanian Rapid Open 2022"]
[Site "Sebes"]
[Date "2022.12.02"]
[Round "5.14"]
[White "Manea, Alexandru"]
[Black "Anghel, Iulian-Mihai"]
[Result "1-0"]
[ECO "A14"]
[WhiteElo "2339"]
[BlackElo "2061"]
[Annotator "TA"]
[PlyCount "79"]
[EventDate "2022.12.02"]
[EventType "rapid"]
[EventCountry "ROU"]
[SourceTitle "playchess.com"]
[Source "ChessBase"]
[SourceQuality "1"]
[TimeControl "600+5"]

{[%evp 15,79,-20,4,0,0,0,-2,-12,-11,-20,0,-13,-20,-35,-21,-31,-24,-40,-32,-37,0,-11,-13,-13,0,0,0,-6,-6,0,0,-4,0,0,0,0,11,22,45,29,34,22,185,212,194,193,199,211,259,193,183,115,370,354,304,245,1010,916,29979,29980,29980,29981,29982,29983,29993,1466]} 1. c4 {[%emt 0:00:05]} Nf6 {[%emt 0:00:09]} 2. g3 {[%emt 0:00:00]} e6 {[%emt 0:00:09]} 3. Bg2 {[%emt 0:00:03]} d5 {[%emt 0:00:02]} 4. Nf3 {[%emt 0:00:05]} Be7 {[%emt 0:00:16]} 5. O-O {[%emt 0:00:06]} O-O {[%emt 0:00:02]} 6. cxd5 {[%emt 0:00:05]} exd5 {[%emt 0:00:07]} 7. d4 {[%emt 0:00:05] 7.b3 deserves study.} c6 {[%emt 0:00:21]} 8. Nc3 {[%emt 0:00:02]} Ne4 {[%emt 0:00:53]} 9. Nxe4 {[%emt 0:00:15] A14: English Opening: 1...e6 with b3 by White.} dxe4 {[%emt 0:00:00]} 10. Ne5 {[%emt 0:00:03] [#]} f6 $146 {[%emt 0:00:30]} ({Predecessor:} 10... Bf6 11. Bxe4 Bxe5 12. dxe5 f5 13. Qb3+ Kh8 14. Bg2 Nd7 15. f4 Nc5 16. Qb4 Na6 {1-0 (30) Reede,A (1789)-Tobey,A (918) LSS email 2017}) 11. Nc4 {[%emt 0:01:30] The position is equal.} Be6 {[%emt 0:00:10]} 12. b3 {[%emt 0:00:04]} f5 {[%emt 0:01:02]} 13. Bf4 {[%emt 0:00:47]} Nd7 {[%emt 0:02:04][%cal Bb8d7,Bd7f6,Bf6d5][%mdl 32]} 14. Qc2 {[%emt 0:00:34]} Nf6 {[%emt 0:00:18]} 15. Rad1 {[%emt 0:00:07]} Nd5 {[%emt 0:00:20]} 16. Be5 {[%emt 0:00:21]} b5 {[%emt 0:00:57] [#] ...Nb4 is the strong threat.} 17. Ne3 {[%emt 0:00:37]} Rc8 {[%emt 0:00:36]} 18. Nxd5 {[%emt 0:00:04]} cxd5 {[%emt 0:00:21]} 19. Qd2 {[%emt 0:00:03]} a5 {[%emt 0:00:59]} 20. Rc1 {[%emt 0:01:32]} Qb6 {[%emt 0:00:57]} 21. Qb2 {[%emt 0:00:55]} Bd6 {[%emt 0:00:32]} 22. Bxd6 {[%emt 0:00:12]} Qxd6 {[%emt 0:00:01]} 23. e3 $40 {[%emt 0:00:01][%mdl 128] White has some attack.} g5 {[%emt 0:00:16]} 24. f4 {[%emt 0:00:34]} exf3 {[%emt 0:00:28]} 25. Bxf3 {[%emt 0:00:04]} Rxc1 {[%emt 0:00:17]} 26. Rxc1 {[%emt 0:00:01]} f4 {[%emt 0:00:02]} 27. exf4 {[%emt 0:00:36]} gxf4 {[%emt 0:00:01]} 28. g4 {[%emt 0:00:02]} Rc8 $2 {[%emt 0:00:21] [#]} (28... Re8 $11 {and Black stays safe.}) 29. Rxc8+ $18 Bxc8 {[%emt 0:00:00][%mdl 4096] Endgame KQB-KQB} 30. Qc3 {[%emt 0:00:06][%csl LRa5,LRc8]} Be6 {[%emt 0:00:15]} 31. Qxa5 {[%emt 0:00:02]} Qd7 {[%emt 0:00:04]} 32. h3 {[%emt 0:00:35]} h5 {[%emt 0:00:05][%cal Rh5g4]} 33. g5 {[%emt 0:00:55]} (33. gxh5 Qg7+ 34. Kh1 Qg3 $11) ({White should try} 33. a4 $18) 33... Qg7 $2 {[%emt 0:00:07][%mdl 8192]} (33... Bf7 $16 {keeps fighting.}) 34. Qd8+ {[%emt 0:01:01]} (34. Bxh5 Qxg5+ 35. Bg4 Bxg4 36. hxg4 Qxg4+ 37. Kf1 Qd1+ 38. Kg2 Qe2+ 39. Kh3 Qf3+ 40. Kh4 Kg7 41. Qc7+ Kg6 42. Qc6+ (42. Qd6+ Kh7 $11) 42... Kf5 43. Qc2+ Qe4 44. Qc8+ Kg6 45. Qc6+ Kf5 46. Qd7+ Kg6 47. Qc6+ Kf5 48. Qd7+ Kg6 49. Qc6+ $11) 34... Kh7 {[%emt 0:00:02]} 35. Kg2 {[%emt 0:00:27]} (35. Bxh5 Qxd4+ 36. Kf1 (36. Kh1 $2 Qe4+ 37. Kh2 Qc2+ 38. Kh1 Qc1+ 39. Kg2 Qd2+ 40. Kh1 Qe1+ 41. Kh2 Qg3+ 42. Kh1 Qxh3+ 43. Kg1 Qxh5 $19) 36... Bxh3+ 37. Ke2 Qe5+ 38. Kd2 Kg7 $11) 35... Bf5 $2 {[%emt 0:00:09]} (35... Bf7 36. Qe7 (36. Bxd5 Qxd4 37. g6+ Kg7 $11) 36... Kg6) 36. Bxd5 {[%emt 0:00:21]} ({Weaker is} 36. Qxd5 Qxg5+ 37. Kh1 b4 $16) 36... Bb1 {[%emt 0:00:05]} 37. a4 {[%emt 0:00:20] White mates.} bxa4 {[%emt 0:00:02]} 38. bxa4 {[%emt 0:00:00]} Bd3 {[%emt 0:00:08]} 39. a5 {[%emt 0:00:20]} Be2 {[%emt 0:00:04]} 40. Be4+ {[%emt 0:00:04] Weighted Error Value: White=0.10 (very precise) /Black=0.41} 1-0

[Event "Romanian Rapid Open 2022"]
[Site "Sebes"]
[Date "2022.12.02"]
[Round "5.15"]
[White "Oltean, Cristian-Daniel"]
[Black "Itkis, Boris"]
[Result "0-1"]
[ECO "B09"]
[WhiteElo "1896"]
[BlackElo "2343"]
[Annotator "TA"]
[PlyCount "104"]
[EventDate "2022.12.02"]
[EventType "rapid"]
[EventCountry "ROU"]
[SourceTitle "playchess.com"]
[Source "ChessBase"]
[SourceQuality "1"]
[TimeControl "600+5"]

{[%evp 13,104,52,46,0,20,-49,-50,-56,-42,-48,-49,-49,-49,-49,-49,-49,-48,-47,-56,-51,-56,-55,-54,-54,-53,-56,-49,-49,-23,-18,-8,-8,-14,-13,-6,-5,0,-120,-49,-68,0,0,0,-10,1,-13,-13,-15,-8,-6,-7,-20,-34,-49,-12,-14,-14,-191,-206,-354,-350,-338,-333,-308,-294,-520,-464,-1423,-1180,-928,-268,-268,-268,-29964,-268,-297,0,-6702,-354,-260,-195,-812,-758,-657,-354,-29976,-29977,-29978,-29979,-29982,-29983,-29983,-29984]} 1. d4 {[%emt 0:00:02]} d6 {[%emt 0:00:00]} 2. e4 {[%emt 0:00:09][%cal Be2e4,Be4e5][%mdl 32]} Nf6 {[%emt 0:00:01]} 3. Nc3 {[%emt 0:00:02]} g6 {[%emt 0:00:01]} 4. f4 {[%emt 0:00:03]} Bg7 {[%emt 0:00:02]} 5. Nf3 {[%emt 0:00:01]} O-O {[%emt 0:00:01]} 6. Bd3 {[%emt 0:00:04]} Nbd7 {[%emt 0:00:01]} 7. e5 {[%emt 0:00:05]} Ne8 $1 {[%emt 0:00:00]} 8. O-O {[%emt 0:00:24] B09: Pirc Defence: Austrian Attack.} (8. Ng5 $5 {[%cal Re5e6]}) 8... c5 {[%emt 0:00:01]} 9. Be3 {[%emt 0:02:25]} (9. Be2 $11) 9... cxd4 $1 $15 {[%emt 0:00:16]} 10. Bxd4 {[%emt 0:00:00] Black is slightly better.} dxe5 {[%emt 0:00:07]} 11. fxe5 {[%emt 0:00:00] [#]} Nxe5 $1 {[%emt 0:00:13]} 12. Bxe5 {[%emt 0:00:00]} Bxe5 {[%emt 0:00:01][%mdl 64] Remove Defender} 13. Nxe5 {[%emt 0:07:55] Kh1 is the strong threat.} Qd4+ 14. Kh1 {[%emt 0:00:00][%cal Oe5f7] aiming for Nxf7!} Qxe5 {[%emt 0:00:01]} 15. Qf3 {[%emt 0:00:00] [#]} Nf6 $146 {[%emt 0:00:43]} ({Predecessor:} 15... Qa5 16. Rae1 e6 17. Qf4 Bd7 18. Ne4 f5 19. Ng5 Ng7 20. Bc4 Rae8 21. Re5 Qc7 {1-0 (31) Guschin,V (2118)-Bajlov,V Taganrog 2014}) 16. Rae1 {[%emt 0:00:00]} Qc7 {[%emt 0:00:01]} 17. Nb5 {[%emt 0:00:00]} Qd8 {[%emt 0:00:37]} 18. Qe3 {[%emt 0:00:00]} a6 $1 {[%emt 0:01:36]} 19. Qxe7 {[%emt 0:00:00]} Qxe7 {[%emt 0:00:28]} 20. Rxe7 {[%emt 0:00:00] Threatens to win with Nc7.} Nd5 {[%emt 0:00:14]} 21. Re5 {[%emt 0:00:00]} Nb4 {[%emt 0:00:17] White must now prevent ...Nxd3.} 22. Nc7 {[%emt 0:00:00]} Nxd3 {[%emt 0:00:05]} 23. cxd3 {[%emt 0:00:00]} Rb8 {[%emt 0:00:41]} 24. d4 {[%emt 0:00:00]} Bf5 {[%emt 0:00:37]} 25. Re7 {[%emt 0:00:00] [#]} (25. Nd5 $11 {remains equal.}) 25... Rbd8 {[%emt 0:00:07]} (25... Rfd8 $1 $17 26. d5 Rbc8) 26. d5 {[%emt 0:00:00]} f6 {[%emt 0:01:49]} (26... Rd7 $15 27. Rxd7 Bxd7) 27. Ne6 $11 {[%emt 0:00:50]} Rfe8 {[%emt 0:01:42]} 28. Rg7+ {[%emt 0:00:13]} Kh8 {[%emt 0:00:01]} 29. Nxd8 {[%emt 0:00:02]} Kxg7 {[%emt 0:00:03]} 30. Nxb7 {[%emt 0:00:01][%mdl 4096] Endgame KRB-KRN} Re2 {[%emt 0:00:17]} 31. Nd6 {[%emt 0:00:05]} Bd3 {[%emt 0:00:15]} 32. Rd1 {[%emt 0:00:05]} Rxb2 {[%emt 0:00:34][%cal Of6f5]} 33. h3 {[%emt 0:00:01]} Rb1 {[%emt 0:00:10]} (33... Be2 $5 {[%cal Re2d1]} 34. Rd4 Bf1 $17) 34. Rxb1 Bxb1 {[%emt 0:00:00] KB-KN} 35. Ne8+ $2 {[%emt 0:00:20]} (35. Nb7 $11 {and White has nothing to worry.}) 35... Kf7 $19 {[%emt 0:00:07]} 36. Nc7 {[%emt 0:00:02] [#]} (36. Nd6+ $142 Ke7 37. Nb7) 36... a5 $1 {[%emt 0:00:08]} (36... Bxa2 $2 {too greedy.} 37. Nxa6 Bxd5 38. Kh2 $19) 37. a3 {[%emt 0:00:04]} Ke7 {[%emt 0:00:06] Inhibits d6+.} 38. Nb5 {[%emt 0:00:04]} Bd3 {[%emt 0:00:06]} 39. Nd4 {[%emt 0:00:09]} (39. Nc3 {is the only way for White.}) 39... Kd6 {[%emt 0:00:07]} 40. a4 {[%emt 0:00:05]} (40. Kg1 $142 Kxd5 41. Nb3) 40... Kxd5 {[%emt 0:00:30]} 41. Nb3 {[%emt 0:00:01]} Bc2 $2 {[%emt 0:00:33]} (41... Bc4 42. Nd2 Kc5) 42. Nxa5 {[%emt 0:00:02]} Bxa4 {[%emt 0:00:01]} 43. Nb7 $2 {[%emt 0:00:12]} (43. Kh2 $19) 43... Bc6 $2 {[%emt 0:00:16]} (43... Bb3 {mates} 44. Nd8 Ba2 45. Nf7 Ke6 46. Nh6 f5 47. h4 Kf6 48. g4 f4 49. g5+ Ke5 50. Kg2 Ke4 51. Ng4 Be6 52. Nf2+ Ke3 53. Kf1 Kf3 54. Kg1 Bf5 55. Nd1 Kg4 56. Nc3 Kxh4 57. Kf2 Kxg5 58. Ke2 h5 59. Nb5 h4 60. Kf3 Bg4+ 61. Kf2 Be6 62. Kg2 Kf6 63. Nc3 g5 64. Kh1 g4 65. Kg1 g3 66. Ne4+ Ke5 67. Ng5 h3 68. Nf3+ Ke4 69. Nd2+ Kd3 70. Nf3 Ke3 71. Ne5 h2+ 72. Kg2 Bd5+ 73. Kh3 h1=Q+ 74. Kg4 Qh6 75. Nc4+ Bxc4 76. Kf5 g2 77. Kg4 Be6#) 44. Na5 {[%emt 0:00:06]} Ba4 $2 {[%emt 0:00:05]} (44... Bb5 45. Nb3 Kc4 46. Nd2+ Kd3) 45. Nb7 $1 {[%emt 0:00:01]} Kc6 $2 {[%emt 0:00:04]} (45... Bb3 {( -> ...Ba2)} 46. Nd8 Ba2) 46. Nd8+ {[%emt 0:00:02]} Kd6 {[%emt 0:00:04] Strongly threatening ...Bc6.} 47. Nf7+ $2 {[%emt 0:00:12]} (47. Nb7+ Kd5 48. Na5) 47... Ke7 {[%emt 0:00:03]} 48. Nh6 {[%emt 0:00:02]} Bd7 {[%emt 0:00:16]} 49. g4 {[%emt 0:00:10]} (49. Kh2 $19) 49... Kf8 {[%emt 0:00:19] Black mates.} 50. h4 {[%emt 0:00:02]} g5 {[%emt 0:00:06]} 51. hxg5 {[%emt 0:00:11]} fxg5 {[%emt 0:00:01]} 52. Kg2 {[%emt 0:00:02]} Kg7 {[%emt 0:00:00] Weighted Error Value: White=0.77/Black=0.62} 0-1

[Event "Romanian Rapid Open 2022"]
[Site "Sebes"]
[Date "2022.12.02"]
[Round "5.16"]
[White "Ciorgovean, Iustin"]
[Black "Balaban-Voia, Alexandru"]
[Result "1-0"]
[ECO "E92"]
[WhiteElo "2319"]
[BlackElo "1994"]
[Annotator "TA"]
[PlyCount "79"]
[EventDate "2022.12.02"]
[EventType "rapid"]
[EventCountry "ROU"]
[SourceTitle "playchess.com"]
[Source "ChessBase"]
[SourceQuality "1"]
[TimeControl "600+5"]

{[%evp 21,79,33,62,39,75,75,139,125,145,149,172,162,201,192,206,216,203,172,186,172,200,198,207,203,212,205,211,204,219,216,257,255,250,241,235,239,406,357,336,336,480,334,504,490,656,616,704,685,745,721,946,927,796,794,925,674,910,929,906,854]} 1. e4 {[%emt 0:00:03]} g6 {[%emt 0:00:00]} 2. d4 {[%emt 0:00:01]} Bg7 {[%emt 0:00:01]} 3. c4 {[%emt 0:00:01]} d6 {[%emt 0:00:03]} 4. Nc3 {[%emt 0:00:01]} Nf6 {[%emt 0:00:02]} 5. Nf3 {[%emt 0:00:11]} O-O {[%emt 0:00:02]} 6. Be2 {[%emt 0:00:01]} e5 {[%emt 0:00:01]} 7. Be3 {[%emt 0:00:01]} Ng4 {[%emt 0:00:01]} 8. Bg5 {[%emt 0:00:01]} f6 {[%emt 0:00:00]} 9. Bh4 {[%emt 0:00:01]} g5 {[%emt 0:00:14]} 10. Bg3 {[%emt 0:00:01]} Nh6 {[%emt 0:01:17]} 11. h3 {[%emt 0:00:02]} Nc6 {[%emt 0:01:02]} 12. dxe5 {[%emt 0:00:06] was the old line (12.d5). E92: King's Indian: Classical: 6 Be2 e5: 7 dxe5, 7 Be3 and Petrosian System without 7...Nbd7.} (12. d5 $5 {[%cal Rd5c6]} Ne7 13. Qd2 $11) 12... fxe5 {[%emt 0:03:29]} 13. c5 {[%emt 0:00:50]} Nd4 {[%emt 0:01:01] [#]} ({Black should play} 13... Be6) 14. cxd6 $1 $16 {[%emt 0:01:04] [#] White is clearly better.} Nxf3+ $146 {[%emt 0:01:23]} ({Predecessor:} 14... cxd6 15. Nxd4 exd4 16. Nb5 Be5 17. Nxd4 Qa5+ 18. Kf1 Qc5 19. Bxe5 dxe5 20. Nf3 g4 {1-0 (36) Vakhlamov,I (2405)-Zhileykin,A (2259) Moscow 2017}) 15. Bxf3 {[%emt 0:00:43]} cxd6 {[%emt 0:00:08]} 16. Qd5+ {[%emt 0:00:27]} Kh8 {[%emt 0:00:40]} 17. O-O-O {[%emt 0:00:06]} g4 {[%emt 0:01:31]} 18. hxg4 {[%emt 0:00:17]} (18. Qxd6 $2 {too greedy.} Qxd6 19. Rxd6 gxf3 $19) 18... Bxg4 {[%emt 0:00:40]} 19. Qxd6 {[%emt 0:01:54]} (19. Qxb7 Bxf3 20. gxf3 Rxf3) 19... Qxd6 {[%emt 0:00:00]} 20. Rxd6 {[%emt 0:00:02]} Nf7 {[%emt 0:00:00] [#] And now ...Bxf3 would win.} 21. Rd3 {[%emt 0:00:18]} Bxf3 {[%emt 0:00:00]} 22. Rxf3 {[%emt 0:00:10]} ({Don't play} 22. gxf3 $6 Ng5 $16) 22... Ng5 {[%emt 0:00:04]} 23. Rxf8+ {[%emt 0:00:19]} Rxf8 {[%emt 0:00:09]} 24. f3 {[%emt 0:00:17]} Ne6 {[%emt 0:00:01]} 25. Rh5 {[%emt 0:00:21]} Nf4 {[%emt 0:00:01]} 26. Bxf4 {[%emt 0:00:05]} Rxf4 $18 {[%emt 0:00:09][%mdl 4096] Endgame KRB-KRN} 27. Nd5 {[%emt 0:00:49] Prevents Rf6.} Rf8 {[%emt 0:00:02]} 28. Rf5 {[%emt 0:00:18]} Rxf5 $2 {[%emt 0:00:13]} (28... Kg8 29. Ne7+ Kh8) 29. exf5 {[%emt 0:00:01] KB-KN} Kg8 {[%emt 0:00:04]} 30. b3 {[%emt 0:00:04]} Kf7 {[%emt 0:00:04]} (30... h5 {was called for.} 31. Kc2 Kf7) 31. Kc2 {[%emt 0:00:02] aiming for g4.} Bf8 {[%emt 0:00:06]} (31... h5 $142 32. Kd3 Bf8) 32. g4 {[%emt 0:00:14] White is clearly winning.} Bh6 {[%emt 0:00:08]} 33. Kd3 {[%emt 0:00:01]} Bf8 {[%emt 0:00:03]} 34. Ke4 {[%emt 0:00:02]} Bd6 {[%emt 0:00:01]} 35. a4 {[%emt 0:00:18]} Bb8 {[%emt 0:00:09]} 36. b4 {[%emt 0:00:24][%cal Bb3b4,Bb4b5][%mdl 32]} Bd6 {[%emt 0:00:02]} 37. b5 {[%emt 0:00:02]} Bb8 {[%emt 0:00:07]} 38. Ne3 {[%emt 0:00:23]} h6 {[%emt 0:00:06]} 39. Nc4 {[%emt 0:00:04]} Kf6 {[%emt 0:00:02]} 40. Na5 {[%emt 0:00:02] Black got outplayed after the opening.   Weighted Error Value: White=0.21 (precise) /Black=0.52} 1-0

[Event "Romanian Rapid Open 2022"]
[Site "Sebes"]
[Date "2022.12.02"]
[Round "5.17"]
[White "Cnejev, Vladimir-Alexandru"]
[Black "Craciun, Sasha-Matei"]
[Result "0-1"]
[ECO "B22"]
[WhiteElo "2293"]
[BlackElo "2001"]
[Annotator "TA"]
[PlyCount "62"]
[EventDate "2022.12.02"]
[EventType "rapid"]
[EventCountry "ROU"]
[SourceTitle "playchess.com"]
[Source "ChessBase"]
[SourceQuality "1"]
[TimeControl "600+5"]

{[%evp 21,62,0,0,0,0,-12,-16,-2,-8,0,0,0,0,-14,0,0,0,-17,0,-21,-25,-27,-30,-37,0,-207,-191,-202,-198,-206,-200,-212,-223,-627,-609,-806,-787,-1844,-1372,-29991,-29992,-29993,-29994]} 1. e4 {[%emt 0:00:02]} c5 {[%emt 0:00:01]} 2. Nf3 {[%emt 0:00:02]} e6 {[%emt 0:00:01]} 3. c3 {[%emt 0:00:01]} d5 {[%emt 0:00:02]} 4. exd5 {[%emt 0:00:04]} Qxd5 {[%emt 0:00:02]} 5. d4 {[%emt 0:00:01]} Nf6 {[%emt 0:00:10]} 6. Be3 {[%emt 0:00:02]} Be7 {[%emt 0:00:03]} 7. Be2 {[%emt 0:00:13]} O-O {[%emt 0:00:15]} 8. O-O {[%emt 0:00:03]} cxd4 {[%emt 0:00:02]} 9. cxd4 {[%emt 0:00:02]} Nc6 {[%emt 0:00:02]} 10. Nc3 {[%emt 0:00:03]} Qd6 {[%emt 0:00:01]} 11. a3 {[%emt 0:00:17]} b6 {[%emt 0:00:28]} 12. Re1 {[%emt 0:02:45][%cal Of3e5] B22: Sicilian: 2 c3.} Bb7 {[%emt 0:00:25]} 13. Qc2 {[%emt 0:00:58]} Rfd8 {[%emt 0:01:02]} 14. Rad1 {[%emt 0:00:01] The position is equal.} Rac8 {[%emt 0:01:03] [#]} 15. Bd3 $146 {[%emt 0:00:44][%cal Od4d5]} ({Predecessor:} 15. Qd2 Nd5 16. Nb5 Qb8 17. Bd3 Bf6 18. Bb1 Nce7 19. Bg5 a6 20. Bxf6 Nxf6 21. Nc3 Bxf3 22. gxf3 {0-1 (35) Maliszewski,K (1757)-Adamski,J (2269) Warsaw 2009}) 15... g6 {[%emt 0:00:36] Against d5} 16. h3 {[%emt 0:00:33]} Nd5 {[%emt 0:00:28]} 17. Ne4 {[%emt 0:02:08]} Qd7 {[%emt 0:00:38] ...Nxe3 is the strong threat.} 18. Qe2 {[%emt 0:00:18]} Nxe3 {[%emt 0:00:46]} 19. fxe3 {[%emt 0:00:24]} Kg7 {[%emt 0:05:35]} (19... Na5 {with more complications.} 20. Rf1 f5 21. Bb5 Qc7) 20. Rf1 {[%emt 0:03:04]} f5 {[%emt 0:00:00]} 21. Nc3 {[%emt 0:00:00]} Bf6 {[%emt 0:00:00]} 22. Bc4 {[%emt 0:00:00]} Ne7 {[%emt 0:00:00]} (22... Na5 {simplifies} 23. Ba2 Bd5 24. e4 Bxa2 25. Nxa2 Nc4) 23. e4 $2 {[%emt 0:00:03] [#]} (23. Ne5 $11 Bxe5 24. dxe5) 23... fxe4 $1 $19 {[%emt 0:00:00]} (23... Bxe4 24. Ne5 Bxe5 25. dxe5 $17) 24. Ne5 {[%emt 0:00:00]} Bxe5 {[%emt 0:00:00]} 25. dxe5 {[%emt 0:00:01] [#]} Qc6 {[%emt 0:00:00] The board is on fire.} ({Not} 25... Bd5 26. Bxd5 (26. Ba6 Rb8 $14) 26... Nxd5 27. Nxe4 $14 (27. Qxe4 Qc6 $11)) 26. Rxd8 {[%emt 0:00:10]} Rxd8 {[%emt 0:00:00]} 27. Kh1 $2 {[%emt 0:00:02]} (27. Rf4 e3 28. Qg4) 27... Nf5 {[%emt 0:00:00] And now ...Ng3+ would win.} 28. Kh2 {[%emt 0:00:08] Against Ng3} Qc5 {[%emt 0:00:00]} 29. Qf2 {[%emt 0:00:14]} Qxc4 {[%emt 0:00:00]} 30. g4 {[%emt 0:00:01]} e3 {[%emt 0:00:00]} 31. Qe1 {[%emt 0:00:07]} Rd2+ {[%emt 0:00:00] Weighted Error Value: White=1.20/Black=0.36} 0-1

[Event "Romanian Rapid Open 2022"]
[Site "Sebes"]
[Date "2022.12.02"]
[Round "5.18"]
[White "Lupulescu, Adrian-Calin"]
[Black "Daianu, Cristian-Clement"]
[Result "1/2-1/2"]
[ECO "A05"]
[WhiteElo "1930"]
[BlackElo "2189"]
[Annotator "TA"]
[PlyCount "67"]
[EventDate "2022.12.02"]
[EventType "rapid"]
[EventCountry "ROU"]
[SourceTitle "playchess.com"]
[Source "ChessBase"]
[SourceQuality "1"]
[TimeControl "600+5"]

{[%evp 12,67,0,-38,-4,-66,-44,-79,-68,-114,-36,-33,-17,-27,-12,-43,-9,-10,-18,-33,-8,-12,-16,-12,-3,-20,0,0,0,0,0,0,0,0,53,53,55,44,52,54,64,39,106,108,99,0,0,0,0,0,87,3,3,6,58,58,75,28]} 1. d4 {[%emt 0:00:02]} Nf6 {[%emt 0:00:38]} 2. Nf3 {[%emt 0:00:02]} g6 {[%emt 0:00:02]} 3. g3 {[%emt 0:00:01]} Bg7 {[%emt 0:00:04]} 4. Bg2 {[%emt 0:00:01]} O-O {[%emt 0:09:41]} 5. O-O {[%emt 0:00:03]} c5 {[%emt 0:00:00]} 6. b3 {[%emt 0:00:27]} d5 {[%emt 0:00:00]} 7. Bb2 {[%emt 0:00:05] The main line 7.Bb2 scores better than 7.e3.} Nc6 {[%emt 0:00:00] A05: Réti Opening: 1 Nf3 Nf6.} 8. a3 {[%emt 0:02:09]} (8. e3 $11) 8... Ne4 {[%emt 0:00:00]} 9. e3 {[%emt 0:00:43]} Bg4 {[%emt 0:00:00] [#] Black is better.} 10. h3 $146 {[%emt 0:00:05]} (10. Qd3 $15 {feels stronger.}) ({Predecessor:} 10. c3 Ng5 11. Nbd2 e5 12. Qe1 Nh3+ 13. Kh1 exd4 14. cxd4 Re8 15. Qc1 cxd4 16. Nxd4 Nxd4 17. Bxd4 Bxd4 18. exd4 {0-1 (25) Westphal,G (1572)-Oelze,J (1854) Badenweiler 2009}) 10... Bf5 {[%emt 0:00:00]} (10... Bxf3 $17 11. Bxf3 cxd4 12. exd4 f5) 11. Nbd2 $15 {[%emt 0:01:15]} Nxd2 {[%emt 0:00:00]} 12. Qxd2 {[%emt 0:00:10]} Be4 {[%emt 0:00:00]} 13. Rab1 {[%emt 0:00:45]} cxd4 {[%emt 0:00:00]} 14. Nxd4 {[%emt 0:00:21]} Bxg2 {[%emt 0:00:00]} 15. Kxg2 {[%emt 0:00:02]} e5 {[%emt 0:00:00]} 16. Nxc6 {[%emt 0:01:02]} bxc6 {[%emt 0:00:00]} 17. Rfd1 {[%emt 0:01:20]} Qe7 {[%emt 0:00:00]} 18. Qe2 {[%emt 0:00:56]} f5 {[%emt 0:00:00]} 19. c4 {[%emt 0:00:11]} Rad8 {[%emt 0:00:00]} 20. cxd5 {[%emt 0:00:07]} cxd5 {[%emt 0:00:00]} 21. Rbc1 {[%emt 0:00:11]} Qb7 {[%emt 0:00:00]} 22. b4 {[%emt 0:00:15]} f4 {[%emt 0:00:00]} (22... Rfe8 $11) 23. exf4 $1 $14 {[%emt 0:00:05]} exf4 {[%emt 0:00:00] [#] White must now prevent ...f3+.} 24. Qe6+ {[%emt 0:00:08]} Kh8 {[%emt 0:00:00]} 25. Bxg7+ Qxg7 {[%emt 0:00:00]} 26. Rxd5 {[%emt 0:00:26] White is more active.} (26. gxf4 {with more complications.} Rxf4 27. Rxd5 Rxf2+ 28. Kxf2 Qb2+ 29. Kg3) 26... Rxd5 {[%emt 0:00:00]} (26... Rde8 $1 $14 27. Qd6 fxg3 28. Qxg3 Re2) 27. Qxd5 $16 {[%emt 0:00:02] [#] Hoping for gxf4.} fxg3 $14 {[%emt 0:00:00][%mdl 4096] Endgame KQR-KQR} 28. Rf1 {[%emt 0:00:26]} (28. Kxg3 $16 Qf6 29. Rc2) 28... Qb2 {[%emt 0:01:04][%csl LRa3,LRf2][%cal Rf8f2]} 29. Qc5 {[%emt 0:00:14][%cal Rc5f8]} Rf7 {[%emt 0:00:08]} ({Resist} 29... Qf6 30. f4 $14) 30. Qe3 {[%emt 0:00:25]} Qc2 {[%emt 0:00:26]} (30... gxf2 $11 {remains equal.} 31. Rxf2 Rxf2+ 32. Qxf2 Qg7) 31. Qe8+ {[%emt 0:00:12]} (31. Kxg3 $16 {Threatening Rc1.} Qc7+ 32. Kg2) 31... Kg7 $11 {[%emt 0:00:02][%cal Rf7f2]} 32. Qe5+ {[%emt 0:00:02]} Kg8 {[%emt 0:00:05]} (32... Rf6 $1 $11) 33. Qxg3 $14 {[%emt 0:00:07]} Qe4+ {[%emt 0:00:02]} 34. f3 {[%emt 0:00:05] Weighted Error Value: White=0.23 (precise) /Black=0.26 (precise)} ({White should try} 34. Kg1 $16) 1/2-1/2